[Event "1st Semana Santa Torrevieja 2022"]
[Site "Torrevieja Alicante"]
[Date "2022.04.14"]
[Round "2.12"]
[White "Rakotomaharo, Fy Antenaina"]
[Black "Hompanera Lopez, Enrique"]
[Result "1-0"]
[ECO "B42"]
[WhiteElo "2474"]
[BlackElo "2074"]
[Annotator "TA"]
[PlyCount "41"]
[EventDate "2022.04.12"]
[EventType "swiss"]
[EventCountry "ESP"]
[SourceTitle "playchess.com"]
[Source "ChessBase"]
[SourceQuality "1"]
[TimeControl "5400+30"]

{[%evp 15,41,34,41,40,50,50,62,56,82,49,55,41,57,68,69,79,76,104,139,135,119,122,129,158,293,282,1152,1119]} 1. e4 {[%emt 0:00:03]} c5 {[%emt 0:02:55]} 2. Nf3 {[%emt 0:00:09]} e6 {[%emt 0:00:13]} 3. d4 {[%emt 0:00:22]} cxd4 {[%emt 0:00:08]} 4. Nxd4 {[%emt 0:00:02]} a6 {[%emt 0:00:18]} 5. Bd3 {[%emt 0:00:38]} Qc7 {[%emt 0:00:40]} 6. O-O {[%emt 0:00:40]} Nf6 {[%emt 0:00:21]} 7. Qe2 {[%emt 0:00:53]} d6 {[%emt 0:01:44]} 8. c4 {[%emt 0:00:24][%cal Bc2c4,Bc4c5][%mdl 32]} Nc6 {[%emt 0:02:26] 8...Nbd7 is becoming the main line.} 9. Nxc6 {[%emt 0:02:22] B42: Sicilian: Kan Variation: 5 Bd3.} bxc6 {[%emt 0:00:54]} 10. Nc3 {[%emt 0:00:29]} Bb7 {[%emt 0:02:02]} 11. f4 {[%emt 0:03:07][%cal Bf2f4,Bf4f5][%mdl 32] White is slightly better.} Be7 {[%emt 0:06:23]} 12. Be3 {[%emt 0:02:17] [#]} Rd8 $146 {[%emt 0:07:50]} ({Predecessor:} 12... O-O 13. Rae1 c5 14. Bc1 Nd7 15. e5 g6 16. b3 Rad8 17. Be4 Bxe4 18. exd6 Qxd6 19. Nxe4 Qd4+ 20. Nf2 Qd6 {1-0 (33) Wallace,P (2243)-Bridges,P (1812) Cardiff 2016}) 13. c5 $1 {[%emt 0:04:30]} d5 {[%emt 0:06:45][%cal Bd6d5,Bd5d4][%mdl 32]} 14. e5 {[%emt 0:00:19]} d4 $1 {[%emt 0:03:54]} 15. exf6 {[%emt 0:00:20] &Bianco is more active.} gxf6 {[%emt 0:00:30] [#]} 16. f5 $1 {[%emt 0:00:33] Black must now prevent Bh6.} e5 {[%emt 0:10:20]} (16... dxe3 17. fxe6) 17. Ne4 {[%emt 0:01:07]} dxe3 {[%emt 0:01:19]} 18. Rad1 {[%emt 0:02:12]} ({Don't take} 18. Qxe3 Qd7 19. Rad1 Qd4 $11) 18... Rd4 {[%emt 0:06:37][%cal Od4e4]} 19. Qxe3 {[%emt 0:00:55]} Qd8 {[%emt 0:06:31] [#]} (19... Qd7 $16 20. Bc2 h6) 20. Bc2 $1 $18 {[%emt 0:01:09]} O-O $2 {[%emt 0:05:48]} (20... Qd7 21. Qh6 Qd8) 21. Qh6 {[%emt 1:18:29] Weighted Error Value: White=0.03 (flawless) /Black=0.24 (precise)} 1-0

[Event "1st Semana Santa Torrevieja 2022"]
[Site "Torrevieja Alicante"]
[Date "2022.04.14"]
[Round "3.2"]
[White "Campos Gambuti, Luis Maria"]
[Black "Moussard, Jules"]
[Result "0-1"]
[ECO "E14"]
[WhiteElo "2305"]
[BlackElo "2630"]
[Annotator "TA"]
[PlyCount "74"]
[EventDate "2022.04.12"]
[EventType "swiss"]
[EventCountry "ESP"]
[SourceTitle "playchess.com"]
[Source "ChessBase"]
[SourceQuality "1"]
[TimeControl "5400+30"]

{[%evp 19,74,9,25,9,0,10,13,0,20,7,41,37,74,26,49,13,12,11,36,0,17,19,26,21,51,47,39,-16,-14,-18,-32,-28,-25,-35,-41,-37,-39,-37,-39,-33,-35,-79,-69,-116,-92,-216,-218,-364,-361,-332,-342,-340,-333,-333,-309,-29975,-29976]} 1. d4 {[%emt 0:00:03]} Nf6 {[%emt 0:01:09]} 2. Nf3 {[%emt 0:00:14]} e6 {[%emt 0:00:30]} 3. e3 {[%emt 0:01:09]} b6 {[%emt 0:01:19]} 4. Bd3 {[%emt 0:00:17]} Bb7 {[%emt 0:00:13]} 5. O-O {[%emt 0:00:08]} d5 {[%emt 0:06:10]} 6. c4 {[%emt 0:00:27]} Bd6 {[%emt 0:01:09]} 7. Nc3 {[%emt 0:02:36]} Nbd7 {[%emt 0:05:04]} 8. b3 {[%emt 0:00:34]} O-O {[%emt 0:02:05]} 9. Bb2 {[%emt 0:00:16]} c5 {[%emt 0:02:05]} 10. cxd5 {[%emt 0:05:51]} exd5 {[%emt 0:01:13]} 11. Qe2 {[%emt 0:00:18] E14: Queen's Indian: Classical Variation (4 e3).} a6 {[%emt 0:07:58]} 12. Rfd1 {[%emt 0:07:25]} Qe7 {[%emt 0:00:54]} 13. Bf5 {[%emt 0:05:26] The position is equal.} Rfd8 {[%emt 0:05:35]} 14. Rac1 {[%emt 0:01:07] [#]} cxd4 $146 {[%emt 0:11:37]} ({Predecessor:} 14... Ne4 15. Na4 Nef6 16. dxc5 bxc5 17. Qc2 g6 18. Bh3 d4 19. exd4 Bxf3 20. gxf3 {1-0 (33) Pogosyan,S (2356)-Bashirov,T (2379) Batumi 2018}) 15. Nxd4 {[%emt 0:03:28]} Ne5 {[%emt 0:01:01]} 16. Bh3 {[%emt 0:12:57]} (16. f4 $16 Ng6 17. Bb1) 16... g6 $1 $11 {[%emt 0:06:04]} 17. f3 {[%emt 0:00:21]} (17. g3 $5 {[%cal Rc3a4]}) 17... Re8 {[%emt 0:05:01][%cal Bd8e8,Be8e7,Be7e5,Be5h5,Bh5h4][%mdl 32]} 18. Qf2 {[%emt 0:04:00]} Ned7 {[%emt 0:07:52]} 19. Re1 {[%emt 0:02:02]} Nc5 {[%emt 0:00:18]} 20. Rcd1 {[%emt 0:00:19] Prevents Nd3.} b5 {[%emt 0:00:07]} 21. Qh4 {[%emt 0:03:02][%cal Od4f5] Hoping for Nf5!} Nfd7 {[%emt 0:06:31]} 22. Qxe7 {[%emt 0:07:08]} Rxe7 {[%emt 0:00:09]} 23. Nxd5 {[%emt 0:14:09]} Bxd5 {[%emt 0:00:14]} 24. Nc2 $1 {[%emt 0:00:05] [#]} Be5 $1 {[%emt 0:06:43]} 25. Bxe5 $1 {[%emt 0:04:29]} Rxe5 {[%emt 0:09:34]} 26. f4 {[%emt 0:00:21]} Rh5 {[%emt 0:00:20] ...Nf6 is the strong threat.} 27. Bxd7 {[%emt 0:00:22]} Nxd7 {[%emt 0:00:05][%cal Bc5d7,Bd7f6,Bf6g4][%mdl 32]} 28. g4 {[%emt 0:00:17]} Rh4 {[%emt 0:00:05]} 29. Rxd5 {[%emt 0:00:38]} Nf6 $36 {[%emt 0:00:03][%mdl 2048] Black has the initiative.} 30. Rd4 {[%emt 0:10:10]} Nxg4 {[%emt 0:01:16]} 31. Re2 {[%emt 0:00:19]} (31. Rd2 $15) 31... Rc8 $17 {[%emt 0:00:25][%cal Oh4h2] And now ...Rxh2! would win.} 32. a4 {[%emt 0:02:21] [#] Now White is beyond hope.} (32. Rdd2 $17 {keeps fighting.}) 32... Rxh2 $1 $19 {[%emt 0:03:14]} 33. Rdd2 {[%emt 0:03:20]} (33. Rxh2 $142 Nxh2 34. Kxh2 Rxc2+ 35. Kg3) 33... Rxe2 {[%emt 0:00:17]} 34. Rxe2 {[%emt 0:00:02]} bxa4 {[%emt 0:00:33]} 35. bxa4 {[%emt 0:00:07]} Rc4 {[%emt 0:00:04]} 36. a5 {[%emt 0:01:00]} Rc5 {[%emt 0:00:23]} 37. Kg2 $2 {[%emt 0:00:05] [#]} (37. Nd4 $19) 37... Rxc2 $1 {[%emt 0:00:12][%mdl 512] Weighted Error Value: White=0.54/Black=0.08 (flawless)} 0-1

[Event "1st Semana Santa Torrevieja 2022"]
[Site "Torrevieja Alicante"]
[Date "2022.04.14"]
[Round "3.3"]
[White "Iturrizaga Bonelli, Eduardo"]
[Black "Garcia Martin, Marta"]
[Result "1-0"]
[ECO "A13"]
[WhiteElo "2595"]
[BlackElo "2299"]
[Annotator "TA"]
[PlyCount "85"]
[EventDate "2022.04.12"]
[EventType "swiss"]
[EventCountry "ESP"]
[SourceTitle "playchess.com"]
[Source "ChessBase"]
[SourceQuality "1"]
[TimeControl "5400+30"]

{[%evp 9,85,0,36,34,24,38,31,31,28,36,42,29,31,41,29,15,49,44,50,51,51,41,41,55,49,36,31,39,38,14,37,20,26,0,13,17,17,7,21,6,6,8,12,8,21,17,121,115,132,96,150,165,311,314,294,302,441,425,406,400,399,387,345,396,387,387,379,384,414,433,526,509,491,485,643,635,602,526]} 1. c4 {[%emt 0:00:07]} e6 {[%emt 0:00:12]} 2. g3 {[%emt 0:00:37]} d5 {[%emt 0:00:20][%cal Bd7d5,Bd5d4][%mdl 32]} 3. Bg2 {[%emt 0:00:05]} d4 {[%emt 0:02:20]} 4. Nf3 {[%emt 0:00:22]} Nc6 {[%emt 0:00:27]} 5. O-O {[%emt 0:00:16]} Nf6 {[%emt 0:13:19]} 6. e3 {[%emt 0:04:38] A13: English Opening: 1...e6.} Bc5 {[%emt 0:12:55]} 7. b4 {[%emt 0:03:08]} Bxb4 {[%emt 0:04:26]} 8. exd4 {[%emt 0:00:14] White is slightly better.} O-O {[%emt 0:01:55]} 9. Bb2 {[%emt 0:00:33]} Rb8 {[%emt 0:05:59] [#]} 10. d3 $146 {[%emt 0:02:19]} ({Predecessor:} 10. Na3 Bxa3 11. Bxa3 Re8 12. Bb2 b5 13. Bc3 bxc4 14. Qa4 Bd7 15. Qxc4 Nd5 16. Rfb1 {½-½ (44) Caruana,F (2805)-Hammer,J (2677) Stavanger 2015}) 10... b6 {[%emt 0:07:35]} 11. Nbd2 {[%emt 0:04:26]} Bb7 {[%emt 0:03:53]} 12. Qe2 {[%emt 0:01:55]} Re8 {[%emt 0:06:55]} 13. Ne4 {[%emt 0:02:01]} Nxe4 {[%emt 0:08:53]} 14. dxe4 {[%emt 0:00:37]} Na5 {[%emt 0:00:42]} 15. c5 {[%emt 0:01:16]} Nc6 {[%emt 0:07:49]} (15... bxc5 $2 16. a3 Nb3 17. axb4 Nxa1 18. Rxa1 $16) 16. a3 {[%emt 0:02:35]} Ba5 {[%emt 0:03:34]} 17. cxb6 {[%emt 0:05:00]} Bxb6 {[%emt 0:00:22][%cal Rc6d4]} 18. Rfd1 {[%emt 0:00:08]} Qd7 {[%emt 0:03:20]} 19. Rac1 {[%emt 0:00:59]} f6 {[%emt 0:03:02]} 20. h4 {[%emt 0:01:41]} Qf7 {[%emt 0:02:42]} 21. Bh3 {[%emt 0:01:21]} Na5 {[%emt 0:05:54]} 22. Bc3 {[%emt 0:02:40]} Rbd8 {[%emt 0:02:22]} 23. Rb1 {[%emt 0:03:20] Black must now prevent Bxa5.} Bc6 {[%emt 0:01:41]} 24. Rdc1 {[%emt 0:03:26] Strongly threatening Bxa5.} Ba8 {[%emt 0:01:06]} 25. Bg2 {[%emt 0:01:13]} Nc6 {[%emt 0:00:29]} 26. Rd1 {[%emt 0:00:13]} Rd7 {[%emt 0:00:37]} 27. Qc4 {[%emt 0:02:04]} e5 {[%emt 0:00:36]} (27... Rd6 $11) 28. d5 $16 {[%emt 0:00:33] White stays focused until the end.} Rd6 {[%emt 0:00:32]} 29. Bh3 {[%emt 0:01:30]} Nd8 {[%emt 0:00:08]} (29... Kh8 $142) 30. Bb4 $36 {[%emt 0:00:18][%mdl 2048] Black is under strong pressure. &Bianco is more active.} c5 {[%emt 0:00:34]} (30... Nb7 $142 31. Bxd6 Nxd6) 31. Bxc5 $18 {[%emt 0:05:59]} Rc6 {[%emt 0:00:28]} 32. Rb5 {[%emt 0:00:02]} Nb7 {[%emt 0:00:43] [#]} (32... Rc7 $142 33. Qb4 a5) 33. Be6 $1 {[%emt 0:00:11]} Rexe6 {[%emt 0:00:07]} 34. dxc6 {[%emt 0:02:32]} Rxc6 {[%emt 0:00:05]} 35. Qxf7+ {[%emt 0:00:13]} Kxf7 {[%emt 0:00:04] [#]} 36. Bxb6 {[%emt 0:04:00]} axb6 {[%emt 0:00:09] [#]} 37. Rxe5 $1 {[%emt 0:01:38][%mdl 512]} Nc5 {[%emt 0:01:40] Against Rd7+} 38. Rf5 {[%emt 0:00:06]} Ke7 {[%emt 0:00:54]} 39. e5 {[%emt 0:00:16]} Rc7 {[%emt 0:00:32] White is clearly winning.} 40. exf6+ {[%emt 0:00:18]} gxf6 {[%emt 0:00:05]} 41. g4 {[%emt 0:01:09]} Ra7 {[%emt 0:00:59]} 42. Re1+ {[%emt 0:00:10]} Kf7 {[%emt 0:00:23]} 43. Ng5+ {[%emt 0:02:07] Weighted Error Value: White=0.04 (flawless) /Black=0.28 (precise)} 1-0

[Event "1st Semana Santa Torrevieja 2022"]
[Site "Torrevieja Alicante"]
[Date "2022.04.14"]
[Round "3.4"]
[White "Escobar Medina, Andres F"]
[Black "Yuffa, Daniil"]
[Result "0-1"]
[ECO "B19"]
[WhiteElo "2322"]
[BlackElo "2576"]
[Annotator "TA"]
[PlyCount "112"]
[EventDate "2022.04.12"]
[EventType "swiss"]
[EventCountry "ESP"]
[SourceTitle "playchess.com"]
[Source "ChessBase"]
[SourceQuality "1"]
[TimeControl "5400+30"]

{[%evp 24,112,19,0,0,0,9,0,19,0,1,4,19,8,8,11,11,11,20,25,18,14,21,25,16,-4,-7,-23,-17,-37,-26,-29,-22,-26,-26,-40,-33,-41,0,0,0,0,-12,-50,-44,-41,-47,-50,0,0,0,0,0,-37,-25,-32,-22,-27,-27,-35,-11,-277,-272,-256,-215,-175,-168,-431,-359,-375,-379,-1558,-1599,-1631,-1408,-29966,-29967,-29974,-29975,-29976,-29973,-29972,-29970,-29979,-29980,-29982,-29983,-29983,-29984,-29983,-29984]} 1. e4 {[%emt 0:04:42]} c6 {[%emt 0:00:06]} 2. d4 {[%emt 0:01:25]} d5 {[%emt 0:00:07]} 3. Nc3 {[%emt 0:00:47]} dxe4 {[%emt 0:00:08]} 4. Nxe4 {[%emt 0:00:02]} Bf5 {[%emt 0:00:08]} 5. Ng3 {[%emt 0:00:04]} Bg6 {[%emt 0:00:06]} 6. h4 {[%emt 0:00:22]} h6 {[%emt 0:00:05]} 7. Nf3 {[%emt 0:01:13]} Nd7 {[%emt 0:00:04]} 8. h5 {[%emt 0:00:02]} Bh7 {[%emt 0:00:04]} 9. Bd3 {[%emt 0:00:02]} Bxd3 {[%emt 0:00:09]} 10. Qxd3 {[%emt 0:00:04]} e6 {[%emt 0:00:17]} 11. Bd2 {[%emt 0:00:13]} Ngf6 {[%emt 0:00:42]} 12. O-O-O {[%emt 0:02:25]} Be7 {[%emt 0:00:08]} 13. Kb1 {[%emt 0:04:18]} Qb6 {[%emt 0:00:33] B19: Classical Caro-Kann: 4...Bf5 main line.} 14. Ne4 {[%emt 0:04:07]} c5 {[%emt 0:03:41]} 15. dxc5 {[%emt 0:06:30]} Nxc5 {[%emt 0:00:35] The position is equal.} 16. Nxc5 {[%emt 0:00:07]} Bxc5 {[%emt 0:02:03]} 17. Bc3 {[%emt 0:00:06]} Rd8 {[%emt 0:05:56]} 18. Qxd8+ {[%emt 0:00:50]} Qxd8 {[%emt 0:00:04]} 19. Rxd8+ {[%emt 0:00:06]} Kxd8 {[%emt 0:00:04]} 20. Ne5 {[%emt 0:01:44]} Ke7 {[%emt 0:00:39]} 21. Nd3 {[%emt 0:00:20]} Bd6 {[%emt 0:00:43]} 22. f3 {[%emt 0:00:50]} Rc8 {[%emt 0:01:50] [#]} 23. g4 $146 {[%emt 0:00:15]} ({Predecessor:} 23. Bd4 a6 24. g4 Kf8 25. c3 Nd7 26. Rd1 e5 27. Bf2 Ke7 28. Bh4+ Ke6 29. Nf2 {½-½ (65) Delchev,A (2632)-Magem Badals,J (2589) Sestao 2010}) 23... Kf8 {[%emt 0:01:21]} 24. Bxf6 {[%emt 0:01:34]} gxf6 $11 {[%emt 0:00:07][%mdl 4096] Endgame KRB-KRN} 25. c3 {[%emt 0:01:25]} Ke7 {[%emt 0:00:19]} 26. Kc2 {[%emt 0:32:15]} Rg8 {[%emt 0:00:27]} 27. Kd2 {[%emt 0:00:03]} Rg5 {[%emt 0:00:40]} 28. Ke3 {[%emt 0:00:05]} f5 {[%emt 0:01:37]} 29. gxf5 {[%emt 0:00:04]} Rxf5 {[%emt 0:00:11]} 30. f4 {[%emt 0:02:04]} Ra5 {[%emt 0:01:30]} 31. a3 {[%emt 0:00:04]} Ra4 {[%emt 0:01:07]} 32. Ra1 {[%emt 0:03:12]} Rc4 {[%emt 0:00:35]} 33. Rf1 {[%emt 0:06:24]} a5 {[%emt 0:00:31]} 34. Rf3 {[%emt 0:02:01]} Bc5+ {[%emt 0:02:49]} 35. Kd2 {[%emt 0:01:39] [#] aiming for b3.} Bb6 {[%emt 0:03:24]} ({Black should try} 35... a4 $15) 36. Ne5 {[%emt 0:04:25]} Rc8 {[%emt 0:03:52]} 37. Rd3 {[%emt 0:01:31]} Bc7 {[%emt 0:02:03]} 38. Ke3 {[%emt 0:05:13]} Bd6 {[%emt 0:07:37]} 39. Ng4 {[%emt 0:07:59][%cal Of4f5]} f5 {[%emt 0:04:45]} 40. Nf2 {[%emt 0:08:02]} ({Of course not} 40. Nxh6 Bb8 41. Nxf5+ exf5 $17) 40... Rc4 {[%emt 0:03:33]} 41. b3 $1 {[%emt 0:01:48]} Rc6 {[%emt 0:02:13] [#] ...b5 is the strong threat.} (41... Bxf4+ $2 42. Kf3 Rc6 43. Kxf4 $18) 42. b4 $2 {[%emt 0:00:25][%mdl 8192] This costs White the game.} (42. a4 $11 {and White is okay.}) 42... Rc4 $19 {[%emt 0:00:36]} 43. Nh3 {[%emt 0:00:14]} a4 {[%emt 0:00:24]} ({Not} 43... axb4 44. cxb4 Bc7 45. Rb3 $17) 44. Kf3 {[%emt 0:00:23]} e5 {[%emt 0:01:26] Threatens to win with ...e4+.} 45. fxe5 {[%emt 0:00:26]} (45. Kf2) 45... Bxe5 {[%emt 0:00:07]} 46. Nf2 {[%emt 0:00:59]} Rxc3 {[%emt 0:00:12]} 47. Rxc3 $2 {[%emt 0:00:04]} (47. Ke2) 47... Bxc3 {[%emt 0:00:05] KB-KN} 48. Nd3 {[%emt 0:00:07]} b5 {[%emt 0:00:48]} 49. Nf4 {[%emt 0:00:53]} Kd6 {[%emt 0:00:24] Black mates.} 50. Ne2 {[%emt 0:01:00]} Bb2 {[%emt 0:00:31]} 51. Kf4 {[%emt 0:00:17]} Ke6 {[%emt 0:00:29]} 52. Ke3 {[%emt 0:00:07]} Bxa3 {[%emt 0:00:33]} 53. Nc3 {[%emt 0:00:50]} Bxb4 {[%emt 0:00:14]} 54. Nxb5 {[%emt 0:00:03]} a3 {[%emt 0:00:35]} 55. Nd4+ {[%emt 0:00:06]} Kd5 {[%emt 0:00:32]} 56. Nc2 {[%emt 0:00:04]} Bc5+ {[%emt 0:53:55] Weighted Error Value: White=0.50/Black=0.04 (flawless)} 0-1

[Event "1st Semana Santa Torrevieja 2022"]
[Site "Torrevieja Alicante"]
[Date "2022.04.14"]
[Round "3.5"]
[White "Cuenca Jimenez, Jose Fernando"]
[Black "Makkar, Rajat"]
[Result "1/2-1/2"]
[ECO "C78"]
[WhiteElo "2552"]
[BlackElo "2252"]
[Annotator "TA"]
[PlyCount "70"]
[EventDate "2022.04.12"]
[EventType "swiss"]
[EventCountry "ESP"]
[SourceTitle "playchess.com"]
[Source "ChessBase"]
[SourceQuality "1"]
[TimeControl "5400+30"]

{[%evp 17,70,28,42,0,0,11,9,0,29,0,17,0,14,13,47,30,37,-33,-18,-29,47,30,25,36,32,33,43,53,49,0,0,0,0,0,0,0,0,0,0,0,0,0,0,0,0,0,0,0,0,0,0,0,0,0,0]} 1. e4 {[%emt 0:08:09]} e5 {[%emt 0:00:18]} 2. Nf3 {[%emt 0:00:25]} Nc6 {[%emt 0:00:15]} 3. Bb5 {[%emt 0:00:25]} a6 {[%emt 0:00:17]} 4. Ba4 {[%emt 0:00:23]} Nf6 {[%emt 0:00:22]} 5. O-O {[%emt 0:00:27]} b5 {[%emt 0:00:16]} 6. Bb3 {[%emt 0:00:13]} Bc5 {[%emt 0:00:24]} 7. a4 {[%emt 0:00:56]} Rb8 {[%emt 0:00:23]} 8. c3 {[%emt 0:00:42]} d6 {[%emt 0:00:18]} 9. d4 {[%emt 0:00:06]} Bb6 {[%emt 0:00:15]} 10. a5 {[%emt 0:00:47] C78: Ruy Lopez: Archangelsk and Möller Defences.} Ba7 {[%emt 0:00:14]} ({Don't take} 10... Nxa5 11. Rxa5 Bxa5 12. dxe5 $14) (10... Bxa5 $2 11. dxe5 (11. d5 Ne7 $18) 11... dxe5 12. Qxd8+ Kxd8 13. Bd5 (13. Bxf7 Bb6 $16) 13... Nxd5 14. exd5 $18) 11. h3 {[%emt 0:00:59]} O-O {[%emt 0:00:13]} 12. Be3 {[%emt 0:01:09][%cal Bc1e3,Be3g5,Bg5h4,Bh4g3][%mdl 32]} Re8 {[%emt 0:00:12] now supersedes 12...Ra8.} 13. Ng5 {[%emt 0:01:35]} Rf8 {[%emt 0:00:26]} 14. Re1 {[%emt 0:00:42]} Ra8 {[%emt 0:14:11]} 15. Nf3 {[%emt 0:00:59]} Bb7 {[%emt 0:02:41] [#]} 16. Bg5 $146 {[%emt 0:13:43]} ({Predecessor (2):} 16. Nbd2 h6 17. Nf1 Re8 18. d5 Ne7 19. Bxa7 Rxa7 20. Ng3 c6 21. dxc6 Bxc6 22. Qd2 Rd7 23. c4 Qa8 24. cxb5 Bxb5 {1-0 (33) Svidler,P (2714)-Hong,A (2453) Chess.com INT 2021}) 16... Re8 {[%emt 0:08:58]} 17. Bd5 {[%emt 0:09:19]} ({White should try} 17. Bh4 $14) 17... h6 $1 $15 {[%emt 0:05:19]} 18. Bh4 {[%emt 0:06:30]} Rb8 {[%emt 0:04:41]} (18... exd4 $11 19. Bxf6 Qxf6 20. cxd4 Rab8 21. Bxc6 Bxc6) 19. Qb3 $14 {[%emt 0:21:46]} Qe7 {[%emt 0:03:47]} 20. Nbd2 {[%emt 0:00:05]} g5 {[%emt 0:15:22]} 21. Bg3 {[%emt 0:02:24]} exd4 {[%emt 0:05:50]} 22. Bxc6 {[%emt 0:03:11]} Bxc6 {[%emt 0:00:15]} 23. cxd4 {[%emt 0:05:27]} (23. e5 $14) 23... Bxe4 $11 {[%emt 0:08:42] The position is equal.} 24. Nxe4 {[%emt 0:04:16]} Nxe4 {[%emt 0:00:48]} 25. Qd5 {[%emt 0:03:31]} Qe6 {[%emt 0:04:50]} 26. Qc6 {[%emt 0:00:03][%csl LRa6,LRc7]} Qc4 {[%emt 0:02:47]} 27. Rac1 {[%emt 0:05:47]} Qxc6 {[%emt 0:00:29]} 28. Rxc6 {[%emt 0:00:02]} Nxg3 {[%emt 0:00:46]} 29. Rxe8+ {[%emt 0:00:36]} Rxe8 {[%emt 0:00:02]} 30. fxg3 {[%emt 0:00:07]} Re4 {[%emt 0:00:31]} 31. Rxc7 {[%emt 0:01:35]} Bxd4+ {[%emt 0:00:19]} 32. Nxd4 {[%emt 0:00:21]} Rxd4 {[%emt 0:00:08] KR-KR} 33. Rc6 {[%emt 0:00:15]} Rd2 {[%emt 0:00:48]} 34. b4 {[%emt 0:00:38]} Rd4 {[%emt 0:00:23]} 35. Rxa6 {[%emt 0:01:52]} Kg7 {[%emt 0:00:56] Weighted Error Value: White=0.11 (very precise) /Black=0.11 (very precise)} 1/2-1/2

[Event "1st Semana Santa Torrevieja 2022"]
[Site "Torrevieja Alicante"]
[Date "2022.04.14"]
[Round "3.6"]
[White "Hernandez Leon, Alberto"]
[Black "Dardha, Daniel"]
[Result "0-1"]
[ECO "E01"]
[WhiteElo "2250"]
[BlackElo "2541"]
[Annotator "TA"]
[PlyCount "67"]
[EventDate "2022.04.12"]
[EventType "swiss"]
[EventCountry "ESP"]
[SourceTitle "playchess.com"]
[Source "ChessBase"]
[SourceQuality "1"]
[TimeControl "5400+30"]

{[%evp 9,67,18,23,24,25,20,31,13,29,9,20,27,35,32,35,21,54,37,66,66,75,60,70,39,39,37,37,45,41,46,137,47,57,46,57,56,58,43,55,-13,88,44,59,8,9,5,16,4,18,0,0,-7,-16,-36,-45,-30,-19,-261,-261,-2546]} 1. d4 {[%emt 0:00:02]} Nf6 {[%emt 0:00:46]} 2. c4 {[%emt 0:00:12]} e6 {[%emt 0:00:19]} 3. Nf3 {[%emt 0:00:08]} d5 {[%emt 0:01:15]} 4. g3 {[%emt 0:00:13]} h6 {[%emt 0:00:53]} 5. Bg2 {[%emt 0:01:23]} Bd6 {[%emt 0:00:14]} 6. O-O {[%emt 0:00:53] E01: Catalan: Early deviations.} O-O {[%emt 0:00:10]} 7. Qc2 {[%emt 0:16:24]} b6 {[%emt 0:02:21]} 8. Nc3 {[%emt 0:04:21] White is slightly better.} Bb7 {[%emt 0:02:00]} 9. cxd5 {[%emt 0:07:40]} exd5 {[%emt 0:00:08]} 10. Bf4 {[%emt 0:01:59]} c6 {[%emt 0:10:41] [#]} 11. Rfd1 $146 {[%emt 0:02:32]} ({Predecessor:} 11. Ne5 Nbd7 12. Nxc6 Bxc6 13. Bxd6 Re8 14. Ba3 Rc8 15. Rac1 Nf8 16. e3 {1-0 (31) Schneider,H (2045)-Winz,M (1691) Berlin 2009}) 11... Re8 {[%emt 0:01:02]} 12. Rac1 {[%emt 0:09:50]} Bf8 {[%emt 0:06:45]} 13. Ne5 {[%emt 0:05:48]} Na6 {[%emt 0:05:25]} 14. a3 {[%emt 0:04:28]} c5 {[%emt 0:02:12]} 15. dxc5 {[%emt 0:07:06]} Nxc5 {[%emt 0:00:09]} 16. b4 {[%emt 0:14:34]} Ne6 {[%emt 0:01:49]} 17. Qb3 {[%emt 0:01:12][%cal Rg2d5]} Nxf4 {[%emt 0:09:52]} 18. gxf4 {[%emt 0:00:08][%cal Oe5f7] [#] Strongly threatening Nxf7!} Rc8 {[%emt 0:00:17]} 19. e3 {[%emt 0:08:37]} Re6 {[%emt 0:09:53]} (19... g5 $14) 20. Nb5 {[%emt 0:04:39]} (20. Bh3 $16) 20... a6 $14 {[%emt 0:01:59]} 21. Nd4 {[%emt 0:00:14]} Re8 {[%emt 0:00:10]} 22. Bh3 {[%emt 0:06:21]} Rc7 {[%emt 0:00:48]} 23. Rxc7 {[%emt 0:01:15]} Qxc7 {[%emt 0:00:03]} 24. Qc2 {[%emt 0:00:34]} ({Better is} 24. Qb2 $14) 24... Qd8 {[%emt 0:04:40]} (24... Qxc2 $11 {keeps the balance.} 25. Nxc2 Re7) 25. Nf5 {[%emt 0:01:26]} a5 {[%emt 0:08:21]} 26. Qb2 {[%emt 0:00:54]} ({White should play} 26. Rc1 $14) 26... axb4 {[%emt 0:00:31]} 27. axb4 {[%emt 0:00:00]} g6 {[%emt 0:01:55]} 28. Nd4 {[%emt 0:00:23]} Bg7 {[%emt 0:00:56]} 29. Qc2 {[%emt 0:01:04]} Ne4 $1 {[%emt 0:00:23]} 30. Nec6 {[%emt 0:00:29] Pair of Knights!} Qh4 {[%emt 0:03:37]} 31. Bg2 {[%emt 0:00:32]} Bxc6 {[%emt 0:03:47]} 32. Nxc6 {[%emt 0:00:17]} Nc3 {[%emt 0:00:28]} 33. Rd3 {[%emt 0:00:48]} (33. Rd2 $11) 33... Ra8 $19 {[%emt 0:00:18] [#] ( -> ...Ra1+)} 34. Qc1 $2 {[%emt 0:00:32] Prevents Ra1.  Weighted Error Value: White=0.37/Black=0.12 (very precise)} ({Don't go for} 34. Rxc3 $2 Ra1+ 35. Qc1 Bxc3 36. Qxa1 Bxa1 $19) (34. h3 Ra2 35. Rxc3 Rxc2 36. Rxc2) 0-1